Department family,Entity,Date,Expense type,Expense area,Supplier,Transaction number,Amount,VAT registration number,
Department for Business Energy and Industrial Strategy,Intellectual Property Office,23/08/2016,Information Technology,People Places & Services Directorate,Insight Direct (UK) Ltd,2995349,-21286.94,Not Applicable,
Department for Business Energy and Industrial Strategy,Intellectual Property Office,17/08/2016,Accommodation,People Places & Services Directorate,Corona Energy,11306520,-8214.49,Not Applicable,
Department for Business Energy and Industrial Strategy,Intellectual Property Office,17/08/2016,Accommodation,People Places & Services Directorate,Corona Energy,11306755,-6355.38,Not Applicable,
Department for Business Energy and Industrial Strategy,Intellectual Property Office,17/08/2016,Accommodation,People Places & Services Directorate,Corona Energy,11306979,-4519.92,Not Applicable,
Department for Business Energy and Industrial Strategy,Intellectual Property Office,17/08/2016,Accommodation,People Places & Services Directorate,Corona Energy,11307767,-3875.77,Not Applicable,
Department for Business Energy and Industrial Strategy,Intellectual Property Office,11/08/2016,Accommodation,People Places & Services Directorate,HSS Hire Service Group Ltd,13590899,567.12,Not Applicable,
Department for Business Energy and Industrial Strategy,Intellectual Property Office,09/08/2016,Accommodation,People Places & Services Directorate,Dwr Cymru Cyf,7064400867,572.38,Not Applicable,
Department for Business Energy and Industrial Strategy,Intellectual Property Office,12/08/2016,Accommodation,People Places & Services Directorate,Senator International Ltd,S01327645,709.68,Not Applicable,
Department for Business Energy and Industrial Strategy,Intellectual Property Office,18/08/2016,Accommodation,People Places & Services Directorate,Corona Energy,11306521,717.34,Not Applicable,
Department for Business Energy and Industrial Strategy,Intellectual Property Office,18/08/2016,Accommodation,People Places & Services Directorate,Corona Energy,11321139,645.10,Not Applicable,
Department for Business Energy and Industrial Strategy,Intellectual Property Office,15/08/2016,Accommodation,People Places & Services Directorate,Morris's Grounds Maintenance,23049,750.00,Not Applicable,
Department for Business Energy and Industrial Strategy,Intellectual Property Office,10/08/2016,Accommodation,People Places & Services Directorate,Total Security Protection Ltd,28296,1050.00,Not Applicable,
Department for Business Energy and Industrial Strategy,Intellectual Property Office,11/08/2016,Accommodation,People Places & Services Directorate,Newey & Eyre,430722822,1085.40,Not Applicable,
Department for Business Energy and Industrial Strategy,Intellectual Property Office,10/08/2016,Accommodation,People Places & Services Directorate,EDF ENERGY,1948035,1242.18,Not Applicable,
Department for Business Energy and Industrial Strategy,Intellectual Property Office,17/08/2016,Accommodation,People Places & Services Directorate,SIG TRADING LTD,7033-18556058,1362.02,Not Applicable,
Department for Business Energy and Industrial Strategy,Intellectual Property Office,18/08/2016,Accommodation,People Places & Services Directorate,Corona Energy,11307761,1420.80,Not Applicable,
Department for Business Energy and Industrial Strategy,Intellectual Property Office,31/08/2016,Accommodation,People Places & Services Directorate,Supply Plus Limited,26832,1428.00,Not Applicable,
Department for Business Energy and Industrial Strategy,Intellectual Property Office,24/08/2016,Accommodation,People Places & Services Directorate,Griffiths Signs & Equipment Co,91482,1431.60,Not Applicable,
Department for Business Energy and Industrial Strategy,Intellectual Property Office,18/08/2016,Accommodation,People Places & Services Directorate,Corona Energy,11321141,1451.17,Not Applicable,
Department for Business Energy and Industrial Strategy,Intellectual Property Office,18/08/2016,Accommodation,People Places & Services Directorate,Corona Energy,11306988,1501.36,Not Applicable,
Department for Business Energy and Industrial Strategy,Intellectual Property Office,18/08/2016,Accommodation,People Places & Services Directorate,Corona Energy,11306757,1626.72,Not Applicable,
Department for Business Energy and Industrial Strategy,Intellectual Property Office,25/08/2016,Accommodation,People Places & Services Directorate,Department For Business Innovation & Ski,6.1511E+11,1518.99,Not Applicable,
Department for Business Energy and Industrial Strategy,Intellectual Property Office,17/08/2016,Accommodation,People Places & Services Directorate,Corona Energy,11238238,3875.77,Not Applicable,
Department for Business Energy and Industrial Strategy,Intellectual Property Office,17/08/2016,Accommodation,People Places & Services Directorate,Corona Energy,11139628,4519.92,Not Applicable,
Department for Business Energy and Industrial Strategy,Intellectual Property Office,03/08/2016,Accommodation,People Places & Services Directorate,Department For Business Innovation & Ski,6.1511E+11,3805.60,Not Applicable,
Department for Business Energy and Industrial Strategy,Intellectual Property Office,17/08/2016,Accommodation,People Places & Services Directorate,Corona Energy,11078180,6355.38,Not Applicable,
Department for Business Energy and Industrial Strategy,Intellectual Property Office,17/08/2016,Accommodation,People Places & Services Directorate,Corona Energy,10974235,8214.49,Not Applicable,
Department for Business Energy and Industrial Strategy,Intellectual Property Office,22/08/2016,Accommodation,People Places & Services Directorate,Infineon Technologies,IRNPT1627,8500.80,Not Applicable,
Department for Business Energy and Industrial Strategy,Intellectual Property Office,25/08/2016,Accommodation,People Places & Services Directorate,Department For Business Innovation & Ski,6.1511E+11,10811.62,Not Applicable,
Department for Business Energy and Industrial Strategy,Intellectual Property Office,25/08/2016,Accommodation,People Places & Services Directorate,Department For Business Innovation & Ski,6.1511E+11,11838.39,Not Applicable,
Department for Business Energy and Industrial Strategy,Intellectual Property Office,25/08/2016,Accommodation,People Places & Services Directorate,Department For Business Innovation & Ski,6.1511E+11,19249.60,Not Applicable,
Department for Business Energy and Industrial Strategy,Intellectual Property Office,10/08/2016,Accommodation,People Places & Services Directorate,EDF ENERGY,1948472,27559.32,Not Applicable,
Department for Business Energy and Industrial Strategy,Intellectual Property Office,25/08/2016,Accommodation,People Places & Services Directorate,Department For Business Innovation & Ski,6.1511E+11,24927.05,Not Applicable,
Department for Business Energy and Industrial Strategy,Intellectual Property Office,15/08/2016,Accommodation,People Places & Services Directorate,Caerphilly County Borough Council,510317691-11MAR,28917.00,Not Applicable,
Department for Business Energy and Industrial Strategy,Intellectual Property Office,11/08/2016,Accommodation,People Places & Services Directorate,BNPPRE Client Common Receipts,114000/37,60531.52,Not Applicable,
Department for Business Energy and Industrial Strategy,Intellectual Property Office,31/08/2016,Accommodation,People Places & Services Directorate,Department For Business Innovation & Ski,6.1511E+11,82617.06,Not Applicable,
Department for Business Energy and Industrial Strategy,Intellectual Property Office,16/08/2016,Accommodation,Projects,Wagstaff Interiors Group,IPO PAYMENT 12,1477.50,Not Applicable,
Department for Business Energy and Industrial Strategy,Intellectual Property Office,24/08/2016,Information Technology,Copyright & Enforcement Direct,COSLA,27544,5120.00,Not Applicable,
Department for Business Energy and Industrial Strategy,Intellectual Property Office,11/08/2016,Information Technology,Copyright & Enforcement Direct,TREBLE 5 TREBLE 1 LTD,SIT003171,7200.00,Not Applicable,
Department for Business Energy and Industrial Strategy,Intellectual Property Office,12/08/2016,Information Technology,Finance Directorate,Advanced Business Solutions,ARBK-99039627,600.00,Not Applicable,
Department for Business Energy and Industrial Strategy,Intellectual Property Office,03/08/2016,Information Technology,Innovation Directorate,Sedao Ltd,4144,910.80,Not Applicable,
Department for Business Energy and Industrial Strategy,Intellectual Property Office,26/08/2016,Information Technology,IT Directorate,Capita Business Services  Ltd,LO10136791,1280.68,Not Applicable,
Department for Business Energy and Industrial Strategy,Intellectual Property Office,08/08/2016,Information Technology,IT Directorate,European Electronique Limited,1539576,1438.80,Not Applicable,
Department for Business Energy and Industrial Strategy,Intellectual Property Office,12/08/2016,Information Technology,IT Directorate,LA International Computer Consultants Lt,LA392480,1701.25,Not Applicable,
Department for Business Energy and Industrial Strategy,Intellectual Property Office,08/08/2016,Information Technology,IT Directorate,LA International Computer Consultants Lt,LA390116,1926.71,Not Applicable,
Department for Business Energy and Industrial Strategy,Intellectual Property Office,08/08/2016,Information Technology,IT Directorate,LA International Computer Consultants Lt,LA391214,2000.56,Not Applicable,
Department for Business Energy and Industrial Strategy,Intellectual Property Office,26/08/2016,Information Technology,IT Directorate,LA International Computer Consultants Lt,LA394263,2101.26,Not Applicable,
Department for Business Energy and Industrial Strategy,Intellectual Property Office,30/08/2016,Information Technology,IT Directorate,Credo Reference Limited,2911,2133.60,Not Applicable,
Department for Business Energy and Industrial Strategy,Intellectual Property Office,09/08/2016,Information Technology,IT Directorate,Capita Business Services  Ltd,LO10132174,2280.29,Not Applicable,
Department for Business Energy and Industrial Strategy,Intellectual Property Office,23/08/2016,Information Technology,IT Directorate,Capita Business Services  Ltd,LO10136057,2302.54,Not Applicable,
Department for Business Energy and Industrial Strategy,Intellectual Property Office,01/08/2016,Information Technology,IT Directorate,Capita Business Services  Ltd,LO10131059,2324.69,Not Applicable,
Department for Business Energy and Industrial Strategy,Intellectual Property Office,09/08/2016,Information Technology,IT Directorate,Capita Business Services  Ltd,LO10132174,2348.54,Not Applicable,
Department for Business Energy and Industrial Strategy,Intellectual Property Office,26/08/2016,Information Technology,IT Directorate,Capita Business Services  Ltd,LO10136791,2354.98,Not Applicable,
Department for Business Energy and Industrial Strategy,Intellectual Property Office,09/08/2016,Information Technology,IT Directorate,Capita Business Services  Ltd,LO10132174,2376.55,Not Applicable,
Department for Business Energy and Industrial Strategy,Intellectual Property Office,26/08/2016,Information Technology,IT Directorate,Capita Business Services  Ltd,LO10136791,2402.71,Not Applicable,
Department for Business Energy and Industrial Strategy,Intellectual Property Office,09/08/2016,Information Technology,IT Directorate,Capita Business Services  Ltd,LO10132174,2517.48,Not Applicable,
Department for Business Energy and Industrial Strategy,Intellectual Property Office,26/08/2016,Information Technology,IT Directorate,Capita Business Services  Ltd,LO10136791,2517.60,Not Applicable,
Department for Business Energy and Industrial Strategy,Intellectual Property Office,26/08/2016,Information Technology,IT Directorate,Capita Business Services  Ltd,LO10136791,2561.35,Not Applicable,
Department for Business Energy and Industrial Strategy,Intellectual Property Office,01/08/2016,Information Technology,IT Directorate,Capita Business Services  Ltd,LO10131059,2690.88,Not Applicable,
Department for Business Energy and Industrial Strategy,Intellectual Property Office,09/08/2016,Information Technology,IT Directorate,Capita Business Services  Ltd,LO10132174,2784.55,Not Applicable,
Department for Business Energy and Industrial Strategy,Intellectual Property Office,26/08/2016,Information Technology,IT Directorate,Capita Business Services  Ltd,LO10136791,2813.98,Not Applicable,
Department for Business Energy and Industrial Strategy,Intellectual Property Office,26/08/2016,Information Technology,IT Directorate,LA International Computer Consultants Lt,LA394264,3146.88,Not Applicable,
Department for Business Energy and Industrial Strategy,Intellectual Property Office,09/08/2016,Information Technology,IT Directorate,Capita Business Services  Ltd,LO10132174,3201.68,Not Applicable,
Department for Business Energy and Industrial Strategy,Intellectual Property Office,23/08/2016,Information Technology,IT Directorate,Capita Business Services  Ltd,LO10136057,3201.68,Not Applicable,
Department for Business Energy and Industrial Strategy,Intellectual Property Office,26/08/2016,Information Technology,IT Directorate,Capita Business Services  Ltd,LO10136791,3201.68,Not Applicable,
Department for Business Energy and Industrial Strategy,Intellectual Property Office,26/08/2016,Information Technology,IT Directorate,Capita Business Services  Ltd,LO10136791,3211.56,Not Applicable,
Department for Business Energy and Industrial Strategy,Intellectual Property Office,11/08/2016,Information Technology,IT Directorate,Capita Business Services  Ltd,LO10134100,3254.38,Not Applicable,
Department for Business Energy and Industrial Strategy,Intellectual Property Office,26/08/2016,Information Technology,IT Directorate,Capita Business Services  Ltd,LO10136791,3331.49,Not Applicable,
Department for Business Energy and Industrial Strategy,Intellectual Property Office,09/08/2016,Information Technology,IT Directorate,Capita Business Services  Ltd,LO10132174,3420.13,Not Applicable,
Department for Business Energy and Industrial Strategy,Intellectual Property Office,09/08/2016,Information Technology,IT Directorate,Capita Business Services  Ltd,LO10132174,3420.13,Not Applicable,
Department for Business Energy and Industrial Strategy,Intellectual Property Office,26/08/2016,Information Technology,IT Directorate,Capita Business Services  Ltd,LO10136791,3566.88,Not Applicable,
Department for Business Energy and Industrial Strategy,Intellectual Property Office,23/08/2016,Information Technology,IT Directorate,Capita Business Services  Ltd,LO10136057,3588.62,Not Applicable,
Department for Business Energy and Industrial Strategy,Intellectual Property Office,01/08/2016,Information Technology,IT Directorate,Capita Business Services  Ltd,LO10131059,3680.64,Not Applicable,
Department for Business Energy and Industrial Strategy,Intellectual Property Office,26/08/2016,Information Technology,IT Directorate,Capita Business Services  Ltd,LO10136791,4136.16,Not Applicable,
Department for Business Energy and Industrial Strategy,Intellectual Property Office,01/08/2016,Information Technology,IT Directorate,Capita Business Services  Ltd,LO10131059,4856.54,Not Applicable,
Department for Business Energy and Industrial Strategy,Intellectual Property Office,11/08/2016,Information Technology,IT Directorate,Capita Business Services  Ltd,LO10134100,4872.46,Not Applicable,
Department for Business Energy and Industrial Strategy,Intellectual Property Office,11/08/2016,Information Technology,IT Directorate,Capita Business Services  Ltd,LO10134100,5121.42,Not Applicable,
Department for Business Energy and Industrial Strategy,Intellectual Property Office,17/08/2016,Information Technology,IT Directorate,Avepoint UK Ltd,1608126444,5334.12,Not Applicable,
Department for Business Energy and Industrial Strategy,Intellectual Property Office,30/08/2016,Information Technology,IT Directorate,Verisign,520003997,4586.11,Not Applicable,
Department for Business Energy and Industrial Strategy,Intellectual Property Office,18/08/2016,Information Technology,IT Directorate,Responsiv Solutions Limited,RSL0114,5568.90,Not Applicable,
Department for Business Energy and Industrial Strategy,Intellectual Property Office,01/08/2016,Information Technology,IT Directorate,Capita Business Services  Ltd,LO10131059,5790.22,Not Applicable,
Department for Business Energy and Industrial Strategy,Intellectual Property Office,01/08/2016,Information Technology,IT Directorate,Capita Business Services  Ltd,LO10131059,6432.50,Not Applicable,
Department for Business Energy and Industrial Strategy,Intellectual Property Office,11/08/2016,Information Technology,IT Directorate,Capita Business Services  Ltd,LO10134100,6651.80,Not Applicable,
Department for Business Energy and Industrial Strategy,Intellectual Property Office,26/08/2016,Information Technology,IT Directorate,Capita Business Services  Ltd,LO10136791,7380.56,Not Applicable,
Department for Business Energy and Industrial Strategy,Intellectual Property Office,23/08/2016,Information Technology,IT Directorate,Capita Business Services  Ltd,LO10136057,7498.51,Not Applicable,
Department for Business Energy and Industrial Strategy,Intellectual Property Office,18/08/2016,Information Technology,IT Directorate,Responsiv Solutions Limited,RSL0116,7527.61,Not Applicable,
Department for Business Energy and Industrial Strategy,Intellectual Property Office,26/08/2016,Information Technology,IT Directorate,Capita Business Services  Ltd,LO10136791,7745.70,Not Applicable,
Department for Business Energy and Industrial Strategy,Intellectual Property Office,01/08/2016,Information Technology,IT Directorate,Capita Business Services  Ltd,LO10131059,7988.23,Not Applicable,
Department for Business Energy and Industrial Strategy,Intellectual Property Office,05/08/2016,Information Technology,IT Directorate,Search Technology,12388,7133.54,Not Applicable,
Department for Business Energy and Industrial Strategy,Intellectual Property Office,04/08/2016,Information Technology,IT Directorate,Evolve Secure Solutions Ltd,SI001000,8640.00,Not Applicable,
Department for Business Energy and Industrial Strategy,Intellectual Property Office,23/08/2016,Information Technology,IT Directorate,Capita Business Services  Ltd,LO10136057,8987.21,Not Applicable,
Department for Business Energy and Industrial Strategy,Intellectual Property Office,08/08/2016,Information Technology,IT Directorate,Experian Ltd,HEX67000578656,9000.00,Not Applicable,
Department for Business Energy and Industrial Strategy,Intellectual Property Office,05/08/2016,Information Technology,IT Directorate,Oracle America Inc,3375171,7670.48,Not Applicable,
Department for Business Energy and Industrial Strategy,Intellectual Property Office,23/08/2016,Information Technology,IT Directorate,Capita Business Services  Ltd,LO10136057,9273.59,Not Applicable,
Department for Business Energy and Industrial Strategy,Intellectual Property Office,18/08/2016,Information Technology,IT Directorate,LA International Computer Consultants Lt,LA393430,9440.64,Not Applicable,
Department for Business Energy and Industrial Strategy,Intellectual Property Office,11/08/2016,Information Technology,IT Directorate,Capita Business Services  Ltd,LO10134100,9553.00,Not Applicable,
Department for Business Energy and Industrial Strategy,Intellectual Property Office,26/08/2016,Information Technology,IT Directorate,Capita Business Services  Ltd,LO10136791,10521.03,Not Applicable,
Department for Business Energy and Industrial Strategy,Intellectual Property Office,23/08/2016,Information Technology,IT Directorate,Capita Business Services  Ltd,LO10136057,10526.67,Not Applicable,
Department for Business Energy and Industrial Strategy,Intellectual Property Office,24/08/2016,Information Technology,IT Directorate,Computacenter (UK) ltd,3880929731,12187.27,Not Applicable,
Department for Business Energy and Industrial Strategy,Intellectual Property Office,08/08/2016,Information Technology,IT Directorate,LA International Computer Consultants Lt,LA390117,12587.52,Not Applicable,
Department for Business Energy and Industrial Strategy,Intellectual Property Office,11/08/2016,Information Technology,IT Directorate,Capita Business Services  Ltd,LO10134100,12950.13,Not Applicable,
Department for Business Energy and Industrial Strategy,Intellectual Property Office,09/08/2016,Information Technology,IT Directorate,Capita Business Services  Ltd,LO10132174,18545.32,Not Applicable,
Department for Business Energy and Industrial Strategy,Intellectual Property Office,09/08/2016,Information Technology,IT Directorate,Capita Business Services  Ltd,LO10132174,20825.43,Not Applicable,
Department for Business Energy and Industrial Strategy,Intellectual Property Office,11/08/2016,Information Technology,IT Directorate,Responsiv Solutions Limited,RSL0105,21446.76,Not Applicable,
Department for Business Energy and Industrial Strategy,Intellectual Property Office,12/08/2016,Information Technology,IT Directorate,Satisnet Ltd,11698,37833.60,Not Applicable,
Department for Business Energy and Industrial Strategy,Intellectual Property Office,18/08/2016,Information Technology,Patent Directorate,Lexis-Nexis UK,1607457163,1082.40,Not Applicable,
Department for Business Energy and Industrial Strategy,Intellectual Property Office,16/08/2016,Information Technology,Patent Directorate,Lexis-Nexis UK,1607457621,2883.30,Not Applicable,
Department for Business Energy and Industrial Strategy,Intellectual Property Office,05/08/2016,Information Technology,Patent Directorate,STN,9340299028,12364.21,Not Applicable,
Department for Business Energy and Industrial Strategy,Intellectual Property Office,25/08/2016,Information Technology,Patent Directorate,Elsevier BV,SD297388,14349.90,Not Applicable,
Department for Business Energy and Industrial Strategy,Intellectual Property Office,30/08/2016,Information Technology,Patent Directorate,European Patent Office,40259862,102696.73,Not Applicable,
Department for Business Energy and Industrial Strategy,Intellectual Property Office,23/08/2016,Information Technology,People Places & Services Directorate,Insight Direct (UK) Ltd,2973996,64118.12,Not Applicable,
Department for Business Energy and Industrial Strategy,Intellectual Property Office,22/08/2016,Information Technology,Projects,Miggle Ltd,MIG-IPO-001-015,2464.50,Not Applicable,
Department for Business Energy and Industrial Strategy,Intellectual Property Office,03/08/2016,Information Technology,Projects,Probrand Ltd,OP-I546712,2773.59,Not Applicable,
Department for Business Energy and Industrial Strategy,Intellectual Property Office,03/08/2016,Information Technology,Projects,Probrand Ltd,OP-I546985,4682.62,Not Applicable,
Department for Business Energy and Industrial Strategy,Intellectual Property Office,24/08/2016,Information Technology,Projects,TRUSTIS LIMITED,2386,5340.00,Not Applicable,
Department for Business Energy and Industrial Strategy,Intellectual Property Office,17/08/2016,Information Technology,Projects,SANDHILL CONSULTANTS LTD,IN4058694,9120.00,Not Applicable,
Department for Business Energy and Industrial Strategy,Intellectual Property Office,30/08/2016,Information Technology,Projects,Net Service S.p.A,57-16,64027.14,Not Applicable,
Department for Business Energy and Industrial Strategy,Intellectual Property Office,10/08/2016,Legal & Hearings,Patent Directorate,Marten Walsh Cherer Ltd,92576,1034.82,Not Applicable,
Department for Business Energy and Industrial Strategy,Intellectual Property Office,16/08/2016,Legal & Hearings,Patent Directorate,Government Legal Department,431701,1851.48,Not Applicable,
Department for Business Energy and Industrial Strategy,Intellectual Property Office,11/08/2016,Legal & Hearings,Patent Directorate,JA Scherbel-Ball,106600,1917.00,Not Applicable,
Department for Business Energy and Industrial Strategy,Intellectual Property Office,18/08/2016,Legal & Hearings,Patent Directorate,Government Legal Department,430740,2950.44,Not Applicable,
Department for Business Energy and Industrial Strategy,Intellectual Property Office,17/08/2016,Legal & Hearings,Patent Directorate,Government Legal Department,431782,9166.41,Not Applicable,
Department for Business Energy and Industrial Strategy,Intellectual Property Office,11/08/2016,Legal & Hearings,People Places & Services Directorate,Capital Law LLP,20035465,4235.40,Not Applicable,
Department for Business Energy and Industrial Strategy,Intellectual Property Office,24/08/2016,Legal & Hearings,Projects,Anthony Collins Solicitors LLP,270771,3315.00,Not Applicable,
Department for Business Energy and Industrial Strategy,Intellectual Property Office,24/08/2016,Legal & Hearings,Projects,Anthony Collins Solicitors LLP,270958,16672.50,Not Applicable,
Department for Business Energy and Industrial Strategy,Intellectual Property Office,16/08/2016,Legal & Hearings,Trade Mark Directorate,Government Legal Department,431701,2215.26,Not Applicable,
Department for Business Energy and Industrial Strategy,Intellectual Property Office,15/08/2016,Legal & Hearings,Trade Mark Directorate,Government Legal Department,431938,2908.90,Not Applicable,
Department for Business Energy and Industrial Strategy,Intellectual Property Office,17/08/2016,Legal & Hearings,Trade Mark Directorate,Government Legal Department,431782,7506.72,Not Applicable,
Department for Business Energy and Industrial Strategy,Intellectual Property Office,18/08/2016,Legal & Hearings,Trade Mark Directorate,Government Legal Department,430740,9250.16,Not Applicable,
Department for Business Energy and Industrial Strategy,Intellectual Property Office,05/08/2016,Marketing & Publicity,Innovation Directorate,Richard Windsor,78,700.00,Not Applicable,
Department for Business Energy and Industrial Strategy,Intellectual Property Office,31/08/2016,Marketing & Publicity,Innovation Directorate,Speakeasy Productions Limited,7241,900.00,Not Applicable,
Department for Business Energy and Industrial Strategy,Intellectual Property Office,03/08/2016,Marketing & Publicity,Innovation Directorate,Holland Alexander t/a Venturefest East M,VFEM17104,1320.00,Not Applicable,
Department for Business Energy and Industrial Strategy,Intellectual Property Office,18/08/2016,Marketing & Publicity,Innovation Directorate,Holiday Inn Express,2016015590,2160.00,Not Applicable,
Department for Business Energy and Industrial Strategy,Intellectual Property Office,10/08/2016,Marketing & Publicity,Innovation Directorate,Aardman Animations Ltd,32345,4618.80,Not Applicable,
Department for Business Energy and Industrial Strategy,Intellectual Property Office,15/08/2016,Misc Expenses Finance,Finance Directorate,G4S Cash Services (UK) Ltd,1965577,549.11,Not Applicable,
Department for Business Energy and Industrial Strategy,Intellectual Property Office,10/08/2016,Misc Expenses Finance,Finance Directorate,NATIONAL AUDIT OFFICE,5658,40000.00,Not Applicable,
Department for Business Energy and Industrial Strategy,Intellectual Property Office,02/08/2016,Miscellaneous Expenses General,Finance Directorate,Mitie Facilities Services Ltd,100-91255251,19.92,Not Applicable,
Department for Business Energy and Industrial Strategy,Intellectual Property Office,02/08/2016,Miscellaneous Expenses General,Innovation Directorate,Mitie Facilities Services Ltd,100-91255251,132.60,Not Applicable,
Department for Business Energy and Industrial Strategy,Intellectual Property Office,24/08/2016,Miscellaneous Expenses General,Innovation Directorate,Midia Research,MRM1623,2400.00,Not Applicable,
Department for Business Energy and Industrial Strategy,Intellectual Property Office,12/08/2016,Miscellaneous Expenses General,Innovation Directorate,Swinburne University of Technology,SW070878,3000.00,Not Applicable,
Department for Business Energy and Industrial Strategy,Intellectual Property Office,10/08/2016,Miscellaneous Expenses General,Innovation Directorate,University of West of England,11106137,4791.00,Not Applicable,
Department for Business Energy and Industrial Strategy,Intellectual Property Office,25/08/2016,Miscellaneous Expenses General,International Policy Directora,Intercontinental,2-3.10.16,3165.27,Not Applicable,
Department for Business Energy and Industrial Strategy,Intellectual Property Office,23/08/2016,Miscellaneous Expenses General,IT Directorate,Mitie Facilities Services Ltd,100-91270050,50.40,Not Applicable,
Department for Business Energy and Industrial Strategy,Intellectual Property Office,02/08/2016,Miscellaneous Expenses General,Patent Directorate,Mitie Facilities Services Ltd,100-91255251,16.20,Not Applicable,
Department for Business Energy and Industrial Strategy,Intellectual Property Office,02/08/2016,Miscellaneous Expenses General,Patent Directorate,Mitie Facilities Services Ltd,100-91255251,234.30,Not Applicable,
Department for Business Energy and Industrial Strategy,Intellectual Property Office,02/08/2016,Miscellaneous Expenses General,People Places & Services Directorate,Mitie Facilities Services Ltd,100-91255251,63.96,Not Applicable,
Department for Business Energy and Industrial Strategy,Intellectual Property Office,23/08/2016,Miscellaneous Expenses General,People Places & Services Directorate,Mitie Facilities Services Ltd,100-91270050,165.00,Not Applicable,
Department for Business Energy and Industrial Strategy,Intellectual Property Office,23/08/2016,Miscellaneous Expenses General,People Places & Services Directorate,Mitie Facilities Services Ltd,100-91270050,324.24,Not Applicable,
Department for Business Energy and Industrial Strategy,Intellectual Property Office,03/08/2016,Miscellaneous Expenses General,People Places & Services Directorate,On Your Bike,33529,650.00,Not Applicable,
Department for Business Energy and Industrial Strategy,Intellectual Property Office,24/08/2016,Miscellaneous Expenses General,People Places & Services Directorate,OH Assist Limited,INV0005656,585.34,Not Applicable,
Department for Business Energy and Industrial Strategy,Intellectual Property Office,05/08/2016,Miscellaneous Expenses General,People Places & Services Directorate,Iain Maclean,SB05/08/16,586.10,Not Applicable,
Department for Business Energy and Industrial Strategy,Intellectual Property Office,24/08/2016,Miscellaneous Expenses General,People Places & Services Directorate,On Your Bike,33552,726.96,Not Applicable,
Department for Business Energy and Industrial Strategy,Intellectual Property Office,08/08/2016,Miscellaneous Expenses General,People Places & Services Directorate,Lloyd's Register Quality Assurance Ltd,16000523,1086.06,Not Applicable,
Department for Business Energy and Industrial Strategy,Intellectual Property Office,15/08/2016,Miscellaneous Expenses General,Projects,Anthony Collins Solicitors LLP,270577,21601.39,Not Applicable,
Department for Business Energy and Industrial Strategy,Intellectual Property Office,23/08/2016,Miscellaneous Expenses General,Trade Mark Directorate,Mitie Facilities Services Ltd,100-91270050,9.24,Not Applicable,
Department for Business Energy and Industrial Strategy,Intellectual Property Office,15/08/2016,Office Machinery,People Places & Services Directorate,Total Print Finishing Services Ltd,38546,510.00,Not Applicable,
Department for Business Energy and Industrial Strategy,Intellectual Property Office,08/08/2016,Office Machinery,People Places & Services Directorate,Midshire Business Systems (Northern) Ltd,318321,1476.66,Not Applicable,
Department for Business Energy and Industrial Strategy,Intellectual Property Office,23/08/2016,Office Machinery,People Places & Services Directorate,Siemens Financial Services Limited,244-16-0274999,2088.00,Not Applicable,
Department for Business Energy and Industrial Strategy,Intellectual Property Office,30/08/2016,Office Machinery,People Places & Services Directorate,Xerox Finance,97058531,2557.08,Not Applicable,
Department for Business Energy and Industrial Strategy,Intellectual Property Office,30/08/2016,Office Machinery,People Places & Services Directorate,Xerox Finance,97058982,2983.45,Not Applicable,
Department for Business Energy and Industrial Strategy,Intellectual Property Office,12/08/2016,Office Supplies,Finance Directorate,Banner  Business Supplies Ltd,CR1001SR,-1280.63,Not Applicable,
Department for Business Energy and Industrial Strategy,Intellectual Property Office,12/08/2016,Office Supplies,Finance Directorate,Antalis,922539,-742.32,Not Applicable,
Department for Business Energy and Industrial Strategy,Intellectual Property Office,10/08/2016,Office Supplies,Finance Directorate,Antalis,6057714,624.00,Not Applicable,
Department for Business Energy and Industrial Strategy,Intellectual Property Office,18/08/2016,Office Supplies,Finance Directorate,Antalis,6075439,624.00,Not Applicable,
Department for Business Energy and Industrial Strategy,Intellectual Property Office,24/08/2016,Office Supplies,Finance Directorate,Antalis,6089677,624.00,Not Applicable,
Department for Business Energy and Industrial Strategy,Intellectual Property Office,10/08/2016,Office Supplies,Finance Directorate,Antalis,6057715,705.60,Not Applicable,
Department for Business Energy and Industrial Strategy,Intellectual Property Office,10/08/2016,Office Supplies,Finance Directorate,Print On Solutions Ltd (North West),146318,1221.60,Not Applicable,
Department for Business Energy and Industrial Strategy,Intellectual Property Office,09/08/2016,Office Supplies,Finance Directorate,Banner  Business Supplies Ltd,32054812,1280.63,Not Applicable,
Department for Business Energy and Industrial Strategy,Intellectual Property Office,12/08/2016,Office Supplies,Finance Directorate,Banner  Business Supplies Ltd,32140795,1889.51,Not Applicable,
Department for Business Energy and Industrial Strategy,Intellectual Property Office,12/08/2016,Office Supplies,Finance Directorate,Antalis,5886897,2930.32,Not Applicable,
Department for Business Energy and Industrial Strategy,Intellectual Property Office,23/08/2016,Office Supplies,Patent Directorate,Mitie Facilities Services Ltd,100-91270050,22.55,Not Applicable,
Department for Business Energy and Industrial Strategy,Intellectual Property Office,02/08/2016,Office Supplies,Patent Directorate,Mitie Facilities Services Ltd,100-91255251,40.32,Not Applicable,
Department for Business Energy and Industrial Strategy,Intellectual Property Office,10/08/2016,Office Supplies,Patent Directorate,BNA International,SR41070,3252.00,Not Applicable,
Department for Business Energy and Industrial Strategy,Intellectual Property Office,04/08/2016,Office Supplies,Patent Directorate,British Library,139774247,3791.48,Not Applicable,
Department for Business Energy and Industrial Strategy,Intellectual Property Office,02/08/2016,Office Supplies,People Places & Services Directorate,Mitie Facilities Services Ltd,100-91255251,27.34,Not Applicable,
Department for Business Energy and Industrial Strategy,Intellectual Property Office,23/08/2016,Office Supplies,People Places & Services Directorate,Mitie Facilities Services Ltd,100-91270050,35.28,Not Applicable,
Department for Business Energy and Industrial Strategy,Intellectual Property Office,24/08/2016,Pay Costs,Copyright & Enforcement Direct,Police & Crime Commissioner Sussex,1800038178,2639.59,Not Applicable,
Department for Business Energy and Industrial Strategy,Intellectual Property Office,04/08/2016,Pay Costs,Finance Directorate,Accountancy Recruitment Wales,2194,518.08,Not Applicable,
Department for Business Energy and Industrial Strategy,Intellectual Property Office,11/08/2016,Pay Costs,Finance Directorate,Accountancy Recruitment Wales,2206,537.26,Not Applicable,
Department for Business Energy and Industrial Strategy,Intellectual Property Office,11/08/2016,Pay Costs,Finance Directorate,Accountancy Recruitment Wales,2207,1170.14,Not Applicable,
Department for Business Energy and Industrial Strategy,Intellectual Property Office,04/08/2016,Pay Costs,Finance Directorate,Accountancy Recruitment Wales,2195,1828.36,Not Applicable,
Department for Business Energy and Industrial Strategy,Intellectual Property Office,18/08/2016,Pay Costs,Finance Directorate,Accountancy Recruitment Wales,2217,1828.36,Not Applicable,
Department for Business Energy and Industrial Strategy,Intellectual Property Office,25/08/2016,Pay Costs,Finance Directorate,Accountancy Recruitment Wales,2226,1828.36,Not Applicable,
Department for Business Energy and Industrial Strategy,Intellectual Property Office,12/08/2016,Pay Costs,Patent Directorate,Brook Street (UK) Ltd,30858753,319.68,Not Applicable,
Department for Business Energy and Industrial Strategy,Intellectual Property Office,30/08/2016,Pay Costs,Patent Directorate,Brook Street (UK) Ltd,30889309,322.64,Not Applicable,
Department for Business Energy and Industrial Strategy,Intellectual Property Office,12/08/2016,Pay Costs,Patent Directorate,Brook Street (UK) Ltd,30858753,357.48,Not Applicable,
Department for Business Energy and Industrial Strategy,Intellectual Property Office,12/08/2016,Pay Costs,Patent Directorate,Brook Street (UK) Ltd,30858753,405.10,Not Applicable,
Department for Business Energy and Industrial Strategy,Intellectual Property Office,12/08/2016,Pay Costs,Patent Directorate,Brook Street (UK) Ltd,30858753,462.60,Not Applicable,
Department for Business Energy and Industrial Strategy,Intellectual Property Office,30/08/2016,Pay Costs,Patent Directorate,Brook Street (UK) Ltd,30889309,488.70,Not Applicable,
Department for Business Energy and Industrial Strategy,Intellectual Property Office,12/08/2016,Pay Costs,Patent Directorate,Brook Street (UK) Ltd,30858753,514.60,Not Applicable,
Department for Business Energy and Industrial Strategy,Intellectual Property Office,12/08/2016,Pay Costs,Patent Directorate,Brook Street (UK) Ltd,30858753,514.60,Not Applicable,
Department for Business Energy and Industrial Strategy,Intellectual Property Office,12/08/2016,Pay Costs,Patent Directorate,Brook Street (UK) Ltd,30858753,514.60,Not Applicable,
Department for Business Energy and Industrial Strategy,Intellectual Property Office,15/08/2016,Pay Costs,Patent Directorate,Brook Street (UK) Ltd,30868880,514.60,Not Applicable,
Department for Business Energy and Industrial Strategy,Intellectual Property Office,22/08/2016,Pay Costs,Patent Directorate,Brook Street (UK) Ltd,30878795,514.60,Not Applicable,
Department for Business Energy and Industrial Strategy,Intellectual Property Office,30/08/2016,Pay Costs,Patent Directorate,Brook Street (UK) Ltd,30889309,514.60,Not Applicable,
Department for Business Energy and Industrial Strategy,Intellectual Property Office,30/08/2016,Pay Costs,Patent Directorate,Brook Street (UK) Ltd,30889309,514.60,Not Applicable,
Department for Business Energy and Industrial Strategy,Intellectual Property Office,15/08/2016,Pay Costs,Patent Directorate,Brook Street (UK) Ltd,30868880,530.58,Not Applicable,
Department for Business Energy and Industrial Strategy,Intellectual Property Office,22/08/2016,Pay Costs,Patent Directorate,Brook Street (UK) Ltd,30878795,530.58,Not Applicable,
Department for Business Energy and Industrial Strategy,Intellectual Property Office,22/08/2016,Pay Costs,Patent Directorate,Brook Street (UK) Ltd,30878795,532.80,Not Applicable,
Department for Business Energy and Industrial Strategy,Intellectual Property Office,30/08/2016,Pay Costs,Patent Directorate,Brook Street (UK) Ltd,30889309,532.80,Not Applicable,
Department for Business Energy and Industrial Strategy,Intellectual Property Office,30/08/2016,Pay Costs,Patent Directorate,Brook Street (UK) Ltd,30889309,651.41,Not Applicable,
Department for Business Energy and Industrial Strategy,Intellectual Property Office,22/08/2016,Pay Costs,Patent Directorate,Brook Street (UK) Ltd,30878795,667.30,Not Applicable,
Department for Business Energy and Industrial Strategy,Intellectual Property Office,15/08/2016,Pay Costs,Patent Directorate,Brook Street (UK) Ltd,30868880,779.16,Not Applicable,
Department for Business Energy and Industrial Strategy,Intellectual Property Office,15/08/2016,Pay Costs,Patent Directorate,Brook Street (UK) Ltd,30868880,871.30,Not Applicable,
Department for Business Energy and Industrial Strategy,Intellectual Property Office,15/08/2016,Pay Costs,Patent Directorate,Brook Street (UK) Ltd,30868880,905.94,Not Applicable,
Department for Business Energy and Industrial Strategy,Intellectual Property Office,15/08/2016,Pay Costs,Patent Directorate,Brook Street (UK) Ltd,30868880,922.68,Not Applicable,
Department for Business Energy and Industrial Strategy,Intellectual Property Office,30/08/2016,Pay Costs,Patent Directorate,Brook Street (UK) Ltd,30889309,931.87,Not Applicable,
Department for Business Energy and Industrial Strategy,Intellectual Property Office,12/08/2016,Pay Costs,Patent Directorate,Brook Street (UK) Ltd,30858753,1003.30,Not Applicable,
Department for Business Energy and Industrial Strategy,Intellectual Property Office,22/08/2016,Pay Costs,Patent Directorate,Brook Street (UK) Ltd,30878795,1003.30,Not Applicable,
Department for Business Energy and Industrial Strategy,Intellectual Property Office,12/08/2016,Pay Costs,Patent Directorate,Personal expenses,30858753,1085.14,Not Applicable,
Department for Business Energy and Industrial Strategy,Intellectual Property Office,12/08/2016,Pay Costs,Patent Directorate,Brook Street (UK) Ltd,30858753,1126.38,Not Applicable,
Department for Business Energy and Industrial Strategy,Intellectual Property Office,22/08/2016,Pay Costs,Patent Directorate,Brook Street (UK) Ltd,30878795,1187.63,Not Applicable,
Department for Business Energy and Industrial Strategy,Intellectual Property Office,30/08/2016,Pay Costs,Patent Directorate,Brook Street (UK) Ltd,30889309,1337.82,Not Applicable,
Department for Business Energy and Industrial Strategy,Intellectual Property Office,12/08/2016,Pay Costs,Patent Directorate,Brook Street (UK) Ltd,30858753,1444.38,Not Applicable,
Department for Business Energy and Industrial Strategy,Intellectual Property Office,22/08/2016,Pay Costs,Patent Directorate,Brook Street (UK) Ltd,30878795,1494.36,Not Applicable,
Department for Business Energy and Industrial Strategy,Intellectual Property Office,22/08/2016,Pay Costs,Patent Directorate,Brook Street (UK) Ltd,30878795,1494.98,Not Applicable,
Department for Business Energy and Industrial Strategy,Intellectual Property Office,15/08/2016,Pay Costs,Patent Directorate,Brook Street (UK) Ltd,30868880,1688.76,Not Applicable,
Department for Business Energy and Industrial Strategy,Intellectual Property Office,12/08/2016,Pay Costs,Patent Directorate,Brook Street (UK) Ltd,30858753,1978.81,Not Applicable,
Department for Business Energy and Industrial Strategy,Intellectual Property Office,22/08/2016,Pay Costs,Patent Directorate,Brook Street (UK) Ltd,30878795,2566.46,Not Applicable,
Department for Business Energy and Industrial Strategy,Intellectual Property Office,15/08/2016,Pay Costs,Patent Directorate,Brook Street (UK) Ltd,30868880,2814.77,Not Applicable,
Department for Business Energy and Industrial Strategy,Intellectual Property Office,30/08/2016,Pay Costs,Patent Directorate,Brook Street (UK) Ltd,30889309,3668.98,Not Applicable,
Department for Business Energy and Industrial Strategy,Intellectual Property Office,12/08/2016,Pay Costs,People Places & Services Directorate,Brook Street (UK) Ltd,30858753,430.20,Not Applicable,
Department for Business Energy and Industrial Strategy,Intellectual Property Office,30/08/2016,Pay Costs,People Places & Services Directorate,Brook Street (UK) Ltd,30889309,489.70,Not Applicable,
Department for Business Energy and Industrial Strategy,Intellectual Property Office,15/08/2016,Pay Costs,People Places & Services Directorate,Brook Street (UK) Ltd,30868880,530.58,Not Applicable,
Department for Business Energy and Industrial Strategy,Intellectual Property Office,22/08/2016,Pay Costs,People Places & Services Directorate,Brook Street (UK) Ltd,30878795,530.58,Not Applicable,
Department for Business Energy and Industrial Strategy,Intellectual Property Office,15/08/2016,Postage & Delivery Costs,People Places & Services Directorate,Royal Mail,9052728711,1433.70,Not Applicable,
Department for Business Energy and Industrial Strategy,Intellectual Property Office,03/08/2016,Postage & Delivery Costs,People Places & Services Directorate,Royal Mail,9052637653,1501.30,Not Applicable,
Department for Business Energy and Industrial Strategy,Intellectual Property Office,25/08/2016,Postage & Delivery Costs,People Places & Services Directorate,Parcelforce Worldwide,9052803624,1819.09,Not Applicable,
Department for Business Energy and Industrial Strategy,Intellectual Property Office,05/08/2016,Postage & Delivery Costs,People Places & Services Directorate,CitySprint (UK) Ltd,1806507,3099.53,Not Applicable,
Department for Business Energy and Industrial Strategy,Intellectual Property Office,03/08/2016,Postage & Delivery Costs,People Places & Services Directorate,DHL International (UK) Ltd,BRS9652472,5894.72,Not Applicable,
Department for Business Energy and Industrial Strategy,Intellectual Property Office,09/08/2016,Postage & Delivery Costs,People Places & Services Directorate,Neopost Ltd,NE9000335-08AUG,10000.00,Not Applicable,
Department for Business Energy and Industrial Strategy,Intellectual Property Office,24/08/2016,Staff Costs,Copyright & Enforcement Direct,Worth Consulting Ltd,1347,1800.00,Not Applicable,
Department for Business Energy and Industrial Strategy,Intellectual Property Office,30/08/2016,Staff Costs,Innovation Directorate,Capita Business Services  Ltd,X108008,1155.60,Not Applicable,
Department for Business Energy and Industrial Strategy,Intellectual Property Office,11/08/2016,Staff Costs,Innovation Directorate,IfM Education & Consultancy Services Ltd,19088,1800.00,Not Applicable,
Department for Business Energy and Industrial Strategy,Intellectual Property Office,24/08/2016,Staff Costs,International Policy Directora,RADA Enterprise,15790,1560.00,Not Applicable,
Department for Business Energy and Industrial Strategy,Intellectual Property Office,09/08/2016,Staff Costs,IT Directorate,NobleProg (UK) Ltd,INV-766,7944.00,Not Applicable,
Department for Business Energy and Industrial Strategy,Intellectual Property Office,30/08/2016,Staff Costs,Patent Directorate,British Standards Institution,94582794-1000,-996.00,Not Applicable,
Department for Business Energy and Industrial Strategy,Intellectual Property Office,30/08/2016,Staff Costs,Patent Directorate,British Standards Institution,94582800-1000,-996.00,Not Applicable,
Department for Business Energy and Industrial Strategy,Intellectual Property Office,30/08/2016,Staff Costs,Patent Directorate,British Standards Institution,94582807-1000,-996.00,Not Applicable,
Department for Business Energy and Industrial Strategy,Intellectual Property Office,30/08/2016,Staff Costs,Patent Directorate,British Standards Institution,94582798-1000,896.40,Not Applicable,
Department for Business Energy and Industrial Strategy,Intellectual Property Office,30/08/2016,Staff Costs,Patent Directorate,British Standards Institution,94582805-1000,896.40,Not Applicable,
Department for Business Energy and Industrial Strategy,Intellectual Property Office,30/08/2016,Staff Costs,Patent Directorate,British Standards Institution,94582808-1000,896.40,Not Applicable,
Department for Business Energy and Industrial Strategy,Intellectual Property Office,30/08/2016,Staff Costs,Patent Directorate,British Standards Institution,94562056-1000,996.00,Not Applicable,
Department for Business Energy and Industrial Strategy,Intellectual Property Office,30/08/2016,Staff Costs,Patent Directorate,British Standards Institution,94562063-1000,996.00,Not Applicable,
Department for Business Energy and Industrial Strategy,Intellectual Property Office,18/08/2016,Staff Costs,Patent Directorate,The Clive Davis Partnership Ltd.,CDSC-2527,1440.00,Not Applicable,
Department for Business Energy and Industrial Strategy,Intellectual Property Office,22/08/2016,Staff Costs,Patent Directorate,The Clive Davis Partnership Ltd.,CDSC-2528,1440.00,Not Applicable,
Department for Business Energy and Industrial Strategy,Intellectual Property Office,15/08/2016,Staff Costs,People Places & Services Directorate,St John Cymru-Wales,101557,512.40,Not Applicable,
Department for Business Energy and Industrial Strategy,Intellectual Property Office,18/08/2016,Staff Costs,People Places & Services Directorate,John Alty,DD150616,628.25,Not Applicable,
Department for Business Energy and Industrial Strategy,Intellectual Property Office,24/08/2016,Staff Costs,People Places & Services Directorate,Acorn Recruitment Ltd,APS02888,1378.72,Not Applicable,
Department for Business Energy and Industrial Strategy,Intellectual Property Office,11/08/2016,Staff Costs,People Places & Services Directorate,Knowledge Academy,SO1105282,1678.80,Not Applicable,
Department for Business Energy and Industrial Strategy,Intellectual Property Office,08/08/2016,Staff Costs,People Places & Services Directorate,Teamworks,2658-16-IPO-TRAI,1400.00,Not Applicable,
Department for Business Energy and Industrial Strategy,Intellectual Property Office,24/08/2016,Staff Costs,People Places & Services Directorate,Acorn Recruitment Ltd,APS02887,1861.94,Not Applicable,
Department for Business Energy and Industrial Strategy,Intellectual Property Office,31/08/2016,Staff Costs,People Places & Services Directorate,MyCSP Ltd,7604,2880.00,Not Applicable,
Department for Business Energy and Industrial Strategy,Intellectual Property Office,03/08/2016,Staff Costs,People Places & Services Directorate,Linkedln Ireland,INV06140280,3253.00,Not Applicable,
Department for Business Energy and Industrial Strategy,Intellectual Property Office,12/08/2016,Staff Costs,People Places & Services Directorate,Capita Business Services  Ltd,X106182,5198.40,Not Applicable,
Department for Business Energy and Industrial Strategy,Intellectual Property Office,15/08/2016,Staff Costs,People Places & Services Directorate,P&MM Ltd,503277,9976.60,Not Applicable,
Department for Business Energy and Industrial Strategy,Intellectual Property Office,15/08/2016,Staff Costs,People Places & Services Directorate,P&MM Ltd,1028800,10640.93,Not Applicable,
Department for Business Energy and Industrial Strategy,Intellectual Property Office,02/08/2016,Staff Costs,People Places & Services Directorate,Capita Business Services  Ltd,X107657,24229.80,Not Applicable,
Department for Business Energy and Industrial Strategy,Intellectual Property Office,30/08/2016,Supporting UK Business,Innovation Directorate,IS Media Ltd (t/a People for Research),5895,662.40,Not Applicable,
Department for Business Energy and Industrial Strategy,Intellectual Property Office,10/08/2016,Supporting UK Business,Innovation Directorate,DAN ANTHONY PRESENTATIONS LTD,155,800.00,Not Applicable,
Department for Business Energy and Industrial Strategy,Intellectual Property Office,12/08/2016,Supporting UK Business,Innovation Directorate,Murgitroyd & Company Ltd,19968A-16,2520.00,Not Applicable,
Department for Business Energy and Industrial Strategy,Intellectual Property Office,01/08/2016,Supporting UK Business,Innovation Directorate,Creation IP Ltd,IV1077,2600.00,Not Applicable,
Department for Business Energy and Industrial Strategy,Intellectual Property Office,01/08/2016,Supporting UK Business,Innovation Directorate,Creation IP Ltd,IV1079,2600.00,Not Applicable,
Department for Business Energy and Industrial Strategy,Intellectual Property Office,03/08/2016,Supporting UK Business,Innovation Directorate,Harrison Goddard Foote,G234651-ABL-MXS,2600.00,Not Applicable,
Department for Business Energy and Industrial Strategy,Intellectual Property Office,02/08/2016,Supporting UK Business,Innovation Directorate,Lincoln IP,6041,2600.00,Not Applicable,
Department for Business Energy and Industrial Strategy,Intellectual Property Office,26/08/2016,Supporting UK Business,Innovation Directorate,Lincoln IP,6138,2600.00,Not Applicable,
Department for Business Energy and Industrial Strategy,Intellectual Property Office,01/08/2016,Supporting UK Business,Innovation Directorate,LAWRIE INTELLECTUAL PROPERTY,107981,2600.00,Not Applicable,
Department for Business Energy and Industrial Strategy,Intellectual Property Office,26/08/2016,Supporting UK Business,Innovation Directorate,LAWRIE INTELLECTUAL PROPERTY,108261,2600.00,Not Applicable,
Department for Business Energy and Industrial Strategy,Intellectual Property Office,11/08/2016,Supporting UK Business,Innovation Directorate,CAMERON INTELLECTUAL PROPERTY LTD,1872/16,2600.00,Not Applicable,
Department for Business Energy and Industrial Strategy,Intellectual Property Office,08/08/2016,Supporting UK Business,Innovation Directorate,Murgitroyd & Company Ltd,20370-16,2600.00,Not Applicable,
Department for Business Energy and Industrial Strategy,Intellectual Property Office,26/08/2016,Supporting UK Business,Innovation Directorate,Murgitroyd & Company Ltd,27773A-16,2600.00,Not Applicable,
Department for Business Energy and Industrial Strategy,Intellectual Property Office,26/08/2016,Supporting UK Business,Innovation Directorate,K. W. Peter & Co,101509,2600.00,Not Applicable,
Department for Business Energy and Industrial Strategy,Intellectual Property Office,04/08/2016,Supporting UK Business,Innovation Directorate,HARPER MACLEOD LLP,D856067,2600.00,Not Applicable,
Department for Business Energy and Industrial Strategy,Intellectual Property Office,11/08/2016,Supporting UK Business,Innovation Directorate,Scintilla,INV-00686,2600.00,Not Applicable,
Department for Business Energy and Industrial Strategy,Intellectual Property Office,23/08/2016,Supporting UK Business,Innovation Directorate,Scintilla,INV-00700,2600.00,Not Applicable,
Department for Business Energy and Industrial Strategy,Intellectual Property Office,11/08/2016,Supporting UK Business,Innovation Directorate,Lean IP,INV2074,3000.00,Not Applicable,
Department for Business Energy and Industrial Strategy,Intellectual Property Office,11/08/2016,Supporting UK Business,Innovation Directorate,Murgitroyd & Company Ltd,14582A-16,3000.00,Not Applicable,
Department for Business Energy and Industrial Strategy,Intellectual Property Office,23/08/2016,Supporting UK Business,Innovation Directorate,Cloch Solicitors,15-0223-IAIN GAR,3000.00,Not Applicable,
Department for Business Energy and Industrial Strategy,Intellectual Property Office,24/08/2016,Supporting UK Business,International Policy Directora,FOREIGN & COMMONWEALTH OFFICE,1089697,615.88,Not Applicable,
Department for Business Energy and Industrial Strategy,Intellectual Property Office,16/08/2016,Supporting UK Business,International Policy Directora,FOREIGN & COMMONWEALTH OFFICE,1089488,7608.66,Not Applicable,
Department for Business Energy and Industrial Strategy,Intellectual Property Office,05/08/2016,Telecoms,IT Directorate,Virgin Media,917218-075,525.20,Not Applicable,
Department for Business Energy and Industrial Strategy,Intellectual Property Office,04/08/2016,Telecoms,IT Directorate,THREE,AGK12656592,863.40,Not Applicable,
Department for Business Energy and Industrial Strategy,Intellectual Property Office,17/08/2016,Telecoms,IT Directorate,THREE,ALI59240255,867.82,Not Applicable,
Department for Business Energy and Industrial Strategy,Intellectual Property Office,08/08/2016,Telecoms,IT Directorate,VODAFONE LIMITED,UK10/082016/7673,3322.08,Not Applicable,
Department for Business Energy and Industrial Strategy,Intellectual Property Office,10/08/2016,Telecoms,IT Directorate,British  Telecom,GP0002104M036OJ,3462.60,Not Applicable,
Department for Business Energy and Industrial Strategy,Intellectual Property Office,26/08/2016,Telecoms,IT Directorate,Vodafone Corporate Ltd,81238951,4805.71,Not Applicable,
Department for Business Energy and Industrial Strategy,Intellectual Property Office,04/08/2016,Telecoms,IT Directorate,Vodafone Corporate Ltd,80924713,4759.25,Not Applicable,
Department for Business Energy and Industrial Strategy,Intellectual Property Office,15/08/2016,Telecoms,IT Directorate,ZEN INTERNET LIMITED,20953113,5364.12,Not Applicable,
Department for Business Energy and Industrial Strategy,Intellectual Property Office,30/08/2016,Telecoms,IT Directorate,EE Ltd,1242565860,6288.16,Not Applicable,
Department for Business Energy and Industrial Strategy,Intellectual Property Office,16/08/2016,Telecoms,IT Directorate,British  Telecom,M17601,9142.75,Not Applicable,
Department for Business Energy and Industrial Strategy,Intellectual Property Office,18/08/2016,Telecoms,IT Directorate,Virgin Media,925289-045M15FEB,24000.00,Not Applicable,
Department for Business Energy and Industrial Strategy,Intellectual Property Office,15/08/2016,Telecoms,IT Directorate,Virgin Media,908251-08JUL16,96702.00,Not Applicable,
Department for Business Energy and Industrial Strategy,Intellectual Property Office,03/08/2016,Travel & Subsistence,Copyright & Enforcement Direct,Veezu Ltd T/A Dragon Taxis (Newport),929,35.40,Not Applicable,
Department for Business Energy and Industrial Strategy,Intellectual Property Office,03/08/2016,Travel & Subsistence,Copyright & Enforcement Direct,Veezu Ltd T/A Dragon Taxis (Newport),929,124.80,Not Applicable,
Department for Business Energy and Industrial Strategy,Intellectual Property Office,26/08/2016,Travel & Subsistence,Copyright & Enforcement Direct,Personal expenses,ER136804,657.49,Not Applicable,
Department for Business Energy and Industrial Strategy,Intellectual Property Office,26/08/2016,Travel & Subsistence,Copyright & Enforcement Direct,Personal expenses,ER136805,873.55,Not Applicable,
Department for Business Energy and Industrial Strategy,Intellectual Property Office,03/08/2016,Travel & Subsistence,Finance Directorate,Veezu Ltd T/A Dragon Taxis (Newport),929,7.80,Not Applicable,
Department for Business Energy and Industrial Strategy,Intellectual Property Office,03/08/2016,Travel & Subsistence,Finance Directorate,Veezu Ltd T/A Dragon Taxis (Newport),929,27.00,Not Applicable,
Department for Business Energy and Industrial Strategy,Intellectual Property Office,31/08/2016,Travel & Subsistence,Finance Directorate,Companies House,S0001728874,46.00,Not Applicable,
Department for Business Energy and Industrial Strategy,Intellectual Property Office,03/08/2016,Travel & Subsistence,Finance Directorate,Veezu Ltd T/A Dragon Taxis (Newport),929,54.00,Not Applicable,
Department for Business Energy and Industrial Strategy,Intellectual Property Office,03/08/2016,Travel & Subsistence,Innovation Directorate,Veezu Ltd T/A Dragon Taxis (Newport),929,47.28,Not Applicable,
Department for Business Energy and Industrial Strategy,Intellectual Property Office,03/08/2016,Travel & Subsistence,Innovation Directorate,Veezu Ltd T/A Dragon Taxis (Newport),929,49.20,Not Applicable,
Department for Business Energy and Industrial Strategy,Intellectual Property Office,03/08/2016,Travel & Subsistence,Innovation Directorate,Veezu Ltd T/A Dragon Taxis (Newport),929,84.84,Not Applicable,
Department for Business Energy and Industrial Strategy,Intellectual Property Office,03/08/2016,Travel & Subsistence,International Policy Directora,Veezu Ltd T/A Dragon Taxis (Newport),929,93.36,Not Applicable,
Department for Business Energy and Industrial Strategy,Intellectual Property Office,03/08/2016,Travel & Subsistence,IT Directorate,Veezu Ltd T/A Dragon Taxis (Newport),929,23.40,Not Applicable,
Department for Business Energy and Industrial Strategy,Intellectual Property Office,03/08/2016,Travel & Subsistence,IT Directorate,Veezu Ltd T/A Dragon Taxis (Newport),929,39.84,Not Applicable,
Department for Business Energy and Industrial Strategy,Intellectual Property Office,30/08/2016,Travel & Subsistence,Patent Directorate,Personal expenses,ER130809,988.37,Not Applicable,
Department for Business Energy and Industrial Strategy,Intellectual Property Office,03/08/2016,Travel & Subsistence,People Places & Services Directorate,Veezu Ltd T/A Dragon Taxis (Newport),929,7.80,Not Applicable,
Department for Business Energy and Industrial Strategy,Intellectual Property Office,03/08/2016,Travel & Subsistence,People Places & Services Directorate,Veezu Ltd T/A Dragon Taxis (Newport),929,7.80,Not Applicable,
Department for Business Energy and Industrial Strategy,Intellectual Property Office,03/08/2016,Travel & Subsistence,People Places & Services Directorate,Veezu Ltd T/A Dragon Taxis (Newport),929,7.80,Not Applicable,
Department for Business Energy and Industrial Strategy,Intellectual Property Office,03/08/2016,Travel & Subsistence,People Places & Services Directorate,Veezu Ltd T/A Dragon Taxis (Newport),929,9.00,Not Applicable,
Department for Business Energy and Industrial Strategy,Intellectual Property Office,03/08/2016,Travel & Subsistence,People Places & Services Directorate,Veezu Ltd T/A Dragon Taxis (Newport),929,26.40,Not Applicable,
Department for Business Energy and Industrial Strategy,Intellectual Property Office,03/08/2016,Travel & Subsistence,People Places & Services Directorate,Veezu Ltd T/A Dragon Taxis (Newport),929,31.20,Not Applicable,
Department for Business Energy and Industrial Strategy,Intellectual Property Office,03/08/2016,Travel & Subsistence,People Places & Services Directorate,Veezu Ltd T/A Dragon Taxis (Newport),929,185.64,Not Applicable,
Department for Business Energy and Industrial Strategy,Intellectual Property Office,03/08/2016,Travel & Subsistence,Projects,Veezu Ltd T/A Dragon Taxis (Newport),929,15.60,Not Applicable,
Department for Business Energy and Industrial Strategy,Intellectual Property Office,03/08/2016,Travel & Subsistence,Projects,Veezu Ltd T/A Dragon Taxis (Newport),929,65.40,Not Applicable,
Department for Business Energy and Industrial Strategy,Intellectual Property Office,03/08/2016,Travel & Subsistence,Trade Mark Directorate,Veezu Ltd T/A Dragon Taxis (Newport),929,7.80,Not Applicable,
Department for Business Energy and Industrial Strategy,Intellectual Property Office,03/08/2016,Travel & Subsistence,Trade Mark Directorate,Veezu Ltd T/A Dragon Taxis (Newport),929,37.20,Not Applicable,
Department for Business Energy and Industrial Strategy,Intellectual Property Office,01/08/2016,Travel & Subsistence,Trade Mark Directorate,Personal expenses,ER136324,1495.93,Not Applicable,
Department for Business Energy and Industrial Strategy,Intellectual Property Office,10/08/2016,Network and infrastructure H/W,IT Directorate,Healthy Workstations Ltd,H57720160812kclpwtoeu,145.14,Not Applicable,
Department for Business Energy and Industrial Strategy,Intellectual Property Office,09/08/2016,Perpetual Licences,IT Directorate,Paypal,H57720160811dqvyqltac,106.08,Not Applicable,
Department for Business Energy and Industrial Strategy,Intellectual Property Office,16/08/2016,Network and infrastructure H/W,IT Directorate,Amazon UK Retail,H57720160818hntemdxba,30.48,Not Applicable,
Department for Business Energy and Industrial Strategy,Intellectual Property Office,16/08/2016,Perpetual Licences,IT Directorate,Meetingzone Ltd,H57720160818pmmpjokcq,440.72,Not Applicable,
Department for Business Energy and Industrial Strategy,Intellectual Property Office,18/08/2016,Network and infrastructure H/W,IT Directorate,Currys S/s,H57720160820szwpalect,33.98,Not Applicable,
Department for Business Energy and Industrial Strategy,Intellectual Property Office,16/08/2016,Network and infrastructure H/W,IT Directorate,Amazon UK Marketplace,H57720160818bdtllgbte,17.55,Not Applicable,
Department for Business Energy and Industrial Strategy,Intellectual Property Office,12/08/2016,Network and infrastructure H/W,IT Directorate,Amazon UK Marketplace,H57720160816tdscpdthi,128.82,Not Applicable,
Department for Business Energy and Industrial Strategy,Intellectual Property Office,13/08/2016,Network and infrastructure H/W,IT Directorate,Apple Online Store Gbp,H57720160816kbolaojxe,75.00,Not Applicable,
Department for Business Energy and Industrial Strategy,Intellectual Property Office,30/07/2016,Network and infrastructure H/W,IT Directorate,Amazon UK Retail Amazon.C,H57720160802avxkyfdeg,25.05,Not Applicable,
Department for Business Energy and Industrial Strategy,Intellectual Property Office,30/07/2016,Network and infrastructure H/W,IT Directorate,Amazon UK Retail,H57720160802xpfblpnnp,25.05,Not Applicable,
Department for Business Energy and Industrial Strategy,Intellectual Property Office,02/08/2016,Perpetual Licences,IT Directorate,Websitepulse.Com,H57720160805qawdkwyly,61.62,Not Applicable,
Department for Business Energy and Industrial Strategy,Intellectual Property Office,03/08/2016,Network and infrastructure H/W,IT Directorate,Buyabattery Co Uk,H57720160805gqmxlcwfy,31.97,Not Applicable,
Department for Business Energy and Industrial Strategy,Intellectual Property Office,29/07/2016,Network and infrastructure H/W,IT Directorate,Amazon UK Marketplace,H57720160802kehqpcxdj,1.99,Not Applicable,
Department for Business Energy and Industrial Strategy,Intellectual Property Office,03/08/2016,Software Maintenance,IT Directorate,Amazon UK Marketplace,H57720160805hixwjubug,15.99,Not Applicable,
Department for Business Energy and Industrial Strategy,Intellectual Property Office,03/08/2016,Software Maintenance,IT Directorate,Amazon UK Marketplace,H57720160805bkpirhpjg,14.55,Not Applicable,
Department for Business Energy and Industrial Strategy,Intellectual Property Office,03/08/2016,Software Maintenance,IT Directorate,Amazon UK Marketplace,H57720160805vacnrwtjn,6.88,Not Applicable,
Department for Business Energy and Industrial Strategy,Intellectual Property Office,11/08/2016,Network and infrastructure H/W,IT Directorate,Amazon UK Marketplace,H57720160813vmzwiimyt,34.99,Not Applicable,
Department for Business Energy and Industrial Strategy,Intellectual Property Office,10/08/2016,Network and infrastructure H/W,IT Directorate,Healthy Workstations Ltd,H57720160812vwwrtynky,107.88,Not Applicable,
Department for Business Energy and Industrial Strategy,Intellectual Property Office,01/08/2016,Network and infrastructure H/W,IT Directorate,Msft *<e01002h0hh>,H57720160803qghmzgvws,30.80,Not Applicable,
Department for Business Energy and Industrial Strategy,Intellectual Property Office,16/08/2016,Books,IT Directorate,Amazon UK Retail Amazon.C,H57720160818oqugqnggy,36.12,Not Applicable,
Department for Business Energy and Industrial Strategy,Intellectual Property Office,09/08/2016,Books,IT Directorate,Digicert Inc,H57720160811yjlhirndt,139.02,Not Applicable,
Department for Business Energy and Industrial Strategy,Intellectual Property Office,08/08/2016,Books,IT Directorate,Amazon UK Retail,H57720160810gpnyhjywn,50.11,Not Applicable,
Department for Business Energy and Industrial Strategy,Intellectual Property Office,03/08/2016,Books,IT Directorate,Amazon Mktplace Pmts,H57720160805nlcyoooux,24.66,Not Applicable,
Department for Business Energy and Industrial Strategy,Intellectual Property Office,29/08/2016,Career Development Services,IT Directorate,Trello,H57720160831uouayjnqe,23.66,Not Applicable,
Department for Business Energy and Industrial Strategy,Intellectual Property Office,02/08/2016,Network and infrastructure H/W,IT Directorate,Amazon UK Retail Amazon.C,H57720160805gneyeyphw,24.74,Not Applicable,
Department for Business Energy and Industrial Strategy,Intellectual Property Office,02/08/2016,Network and infrastructure H/W,IT Directorate,Bt Business Direct Ltd,H57720160804eyyotyrbx,9.12,Not Applicable,
Department for Business Energy and Industrial Strategy,Intellectual Property Office,08/08/2016,Books,Innovation Directorate,Edward Elgar Publishing L,H57720160810lkjguexrr,178.25,Not Applicable,
Department for Business Energy and Industrial Strategy,Intellectual Property Office,09/08/2016,Entertainment,Innovation Directorate,Asda Superstore 4928,H57720160811ftygsswht,31.86,Not Applicable,
Department for Business Energy and Industrial Strategy,Intellectual Property Office,04/08/2016,Career Development Services,Innovation Directorate,W M Morrison Plc,H57720160806bixgsiklb,60.00,Not Applicable,
Department for Business Energy and Industrial Strategy,Intellectual Property Office,04/08/2016,Career Development Services,Innovation Directorate,Buyology Ltd,H57720160806trznsxgqr,19.96,Not Applicable,
Department for Business Energy and Industrial Strategy,Intellectual Property Office,04/08/2016,Career Development Services,Innovation Directorate,Homebase Ltd 110,H57720160806xypvynygm,42.02,Not Applicable,
Department for Business Energy and Industrial Strategy,Intellectual Property Office,03/08/2016,Career Development Services,Innovation Directorate,Lidl Uk,H57720160805aisjachgu,18.94,Not Applicable,
Department for Business Energy and Industrial Strategy,Intellectual Property Office,03/08/2016,Career Development Services,Innovation Directorate,Buyology Ltd,H57720160805evqtlhbbh,20.92,Not Applicable,
Department for Business Energy and Industrial Strategy,Intellectual Property Office,03/08/2016,Career Development Services,Innovation Directorate,B & Q 1300,H57720160805stonlhihd,10.00,Not Applicable,
Department for Business Energy and Industrial Strategy,Intellectual Property Office,03/08/2016,Career Development Services,Innovation Directorate,B&m Retail Ltd,H57720160805tqgzlrofw,24.99,Not Applicable,
Department for Business Energy and Industrial Strategy,Intellectual Property Office,03/08/2016,Career Development Services,Innovation Directorate,B&m Retail Ltd,H57720160805txbjjoscu,20.31,Not Applicable,
Department for Business Energy and Industrial Strategy,Intellectual Property Office,03/08/2016,Career Development Services,Innovation Directorate,Buyology Ltd,H57720160805txyanvyky,88.67,Not Applicable,
Department for Business Energy and Industrial Strategy,Intellectual Property Office,03/08/2016,Career Development Services,Innovation Directorate,Poundstretcher - 690,H57720160805owqpvywyw,128.93,Not Applicable,
Department for Business Energy and Industrial Strategy,Intellectual Property Office,03/08/2016,Career Development Services,Innovation Directorate,W M Morrison Plc,H57720160805wfxkjiblr,22.50,Not Applicable,
Department for Business Energy and Industrial Strategy,Intellectual Property Office,09/08/2016,Entertainment,Innovation Directorate,Marks&spencer Plc Saca,H57720160811rssadcges,22.25,Not Applicable,
Department for Business Energy and Industrial Strategy,Intellectual Property Office,04/08/2016,Entertainment,Innovation Directorate,Asda Superstore 4928,H57720160806pweuudbpk,25.16,Not Applicable,
Department for Business Energy and Industrial Strategy,Intellectual Property Office,31/07/2016,Books,Innovation Directorate,Facebk 4dnpz92ek2,H57720160802mmprzkysg,14.48,Not Applicable,
Department for Business Energy and Industrial Strategy,Intellectual Property Office,07/08/2016,Advertising Distribution,Innovation Directorate,Twitonomy.Com,H57720160809mwxodoker,15.00,Not Applicable,
Department for Business Energy and Industrial Strategy,Intellectual Property Office,08/08/2016,Office Stationery,Finance Directorate,Xma Ltd,H57720160810wsjzrntfl,72.46,Not Applicable,
Department for Business Energy and Industrial Strategy,Intellectual Property Office,02/08/2016,Office Stationery,Finance Directorate,Xma Ltd,H57720160804ekxcqztjs,184.70,Not Applicable,
Department for Business Energy and Industrial Strategy,Intellectual Property Office,23/08/2016,Office Stationery,Finance Directorate,Xma Ltd,H57720160825ssngqpnan,145.99,Not Applicable,
Department for Business Energy and Industrial Strategy,Intellectual Property Office,23/08/2016,Office Stationery,Finance Directorate,Amazon UK Marketplace,H57720160825loqlbvsew,26.00,Not Applicable,
Department for Business Energy and Industrial Strategy,Intellectual Property Office,17/08/2016,Office Stationery,Finance Directorate,Amazon UK Marketplace,H57720160819vpyyihgmd,3.50,Not Applicable,
Department for Business Energy and Industrial Strategy,Intellectual Property Office,11/08/2016,Office Stationery,Finance Directorate,Xma Ltd,H57720160813wiihioofu,291.02,Not Applicable,
Department for Business Energy and Industrial Strategy,Intellectual Property Office,11/08/2016,Office Stationery,Finance Directorate,Xma Ltd,H57720160813ecdpievel,61.92,Not Applicable,
Department for Business Energy and Industrial Strategy,Intellectual Property Office,11/08/2016,Office Stationery,Finance Directorate,Xma Ltd,H57720160813hrneuamop,319.92,Not Applicable,
Department for Business Energy and Industrial Strategy,Intellectual Property Office,11/08/2016,Office Stationery,Finance Directorate,Xma Ltd,H57720160813tnuuohwdm,319.92,Not Applicable,
Department for Business Energy and Industrial Strategy,Intellectual Property Office,11/08/2016,Office Stationery,Finance Directorate,Xma Ltd,H57720160813ueupzoevt,319.92,Not Applicable,
Department for Business Energy and Industrial Strategy,Intellectual Property Office,08/08/2016,Office Stationery,Finance Directorate,Xma Ltd,H57720160810pvqtgkykv,163.72,Not Applicable,
Department for Business Energy and Industrial Strategy,Intellectual Property Office,08/08/2016,Office Stationery,Finance Directorate,Xma Ltd,H57720160810qaetzxvnm,101.80,Not Applicable,
Department for Business Energy and Industrial Strategy,Intellectual Property Office,02/08/2016,Office Stationery,Finance Directorate,Xma Ltd,H57720160804uijxcbdjq,130.43,Not Applicable,
Department for Business Energy and Industrial Strategy,Intellectual Property Office,01/08/2016,Office Stationery,Finance Directorate,Xma Ltd,H57720160803nlsbnvflj,145.99,Not Applicable,
Department for Business Energy and Industrial Strategy,Intellectual Property Office,16/08/2016,Office Stationery,Finance Directorate,Staples,H57720160818vjcgsxyxy,21.16,Not Applicable,
Department for Business Energy and Industrial Strategy,Intellectual Property Office,09/08/2016,Career Development Services,People Places & Serv Direct,Amazon UK Marketplace,H57720160811omloikepb,14.64,Not Applicable,
Department for Business Energy and Industrial Strategy,Intellectual Property Office,01/08/2016,Career Development Services,People Places & Serv Direct,Ticketsource Ltd,H57720160803tsrsktarx,148.40,Not Applicable,
Department for Business Energy and Industrial Strategy,Intellectual Property Office,18/08/2016,Entertainment,People Places & Serv Direct,Amazon UK Marketplace,H57720160820dwakwgsxu,28.99,Not Applicable,
Department for Business Energy and Industrial Strategy,Intellectual Property Office,18/08/2016,Entertainment,People Places & Serv Direct,Amazon UK Marketplace,H57720160820evbixclxs,20.99,Not Applicable,
Department for Business Energy and Industrial Strategy,Intellectual Property Office,18/08/2016,Entertainment,People Places & Serv Direct,Amazon Prime,H57720160820ionmcfgms,7.99,Not Applicable,
Department for Business Energy and Industrial Strategy,Intellectual Property Office,18/08/2016,Entertainment,People Places & Serv Direct,Currys S/s,H57720160820klqgldpxn,549.00,Not Applicable,
Department for Business Energy and Industrial Strategy,Intellectual Property Office,17/08/2016,Perpetual Licences,People Places & Serv Direct,Amazon UK Retail,H57720160819kndcbuyff,79.92,Not Applicable,
Department for Business Energy and Industrial Strategy,Intellectual Property Office,18/08/2016,Office Stationery,People Places & Serv Direct,Buyology Ltd,H57720160820sxlkvujto,10.00,Not Applicable,
Department for Business Energy and Industrial Strategy,Intellectual Property Office,16/08/2016,Office Stationery,People Places & Serv Direct,Screwfix Direct,H57720160818ptxevrxpl,74.80,Not Applicable,
Department for Business Energy and Industrial Strategy,Intellectual Property Office,09/08/2016,Career Development Services,People Places & Serv Direct,Dispute Refund Reversal,H57720160811qpxoxglhs,547.91,Not Applicable,
Department for Business Energy and Industrial Strategy,Intellectual Property Office,09/08/2016,Entertainment,People Places & Serv Direct,Tesco-Stores 6459,H57720160811agtynehjc,19.95,Not Applicable,
Department for Business Energy and Industrial Strategy,Intellectual Property Office,12/07/2016,Career Development Services,People Places & Serv Direct,Bravofly Co UK Gyd Ist 14,H57720160811ekksvxflz,-547.91,Not Applicable,
Department for Business Energy and Industrial Strategy,Intellectual Property Office,23/08/2016,Books,People Places & Serv Direct,Paypal,H57720160825hwurwpmhq,7.50,Not Applicable,
Department for Business Energy and Industrial Strategy,Intellectual Property Office,07/08/2016,Books,People Places & Serv Direct,Amazon UK Retail,H57720160809zxfeyrixb,89.10,Not Applicable,
Department for Business Energy and Industrial Strategy,Intellectual Property Office,01/08/2016,Legal Consultancy,People Places & Serv Direct,Www.Apm.Org.Uk,H57720160803pahjqvakh,120.00,Not Applicable,
Department for Business Energy and Industrial Strategy,Intellectual Property Office,08/08/2016,Books,People Places & Serv Direct,Future Publishing,H57720160810loigzceuf,53.00,Not Applicable,
Department for Business Energy and Industrial Strategy,Intellectual Property Office,22/08/2016, 2 Minute Smile,People Places & Serv Direct,Amazon UK Retail Amazon.C,H57720160824nqdmmgaeq,10.00,Not Applicable,
Department for Business Energy and Industrial Strategy,Intellectual Property Office,10/08/2016, 2 Minute Smile,People Places & Serv Direct,Amazon UK Retail Amazon.C,H57720160812ldcicmwmu,10.00,Not Applicable,
Department for Business Energy and Industrial Strategy,Intellectual Property Office,06/08/2016, 2 Minute Smile,People Places & Serv Direct,Amazon UK Marketplace,H57720160809izpwcehgj,21.82,Not Applicable,
Department for Business Energy and Industrial Strategy,Intellectual Property Office,10/08/2016,Other,People Places & Serv Direct,Amazon UK Marketplace,H57720160812lvvtugype,31.96,Not Applicable,
Department for Business Energy and Industrial Strategy,Intellectual Property Office,10/08/2016,Other,People Places & Serv Direct,Amazon UK Marketplace,H57720160812xquhnhhys,15.96,Not Applicable,
Department for Business Energy and Industrial Strategy,Intellectual Property Office,09/08/2016,Office Furniture,People Places & Serv Direct,Ao Retail Limited,H57720160811kleujjild,243.99,Not Applicable,
Department for Business Energy and Industrial Strategy,Intellectual Property Office,09/08/2016,Office Stationery,People Places & Serv Direct,Nukey,H57720160811sxsdqdtdc,27.50,Not Applicable,
Department for Business Energy and Industrial Strategy,Intellectual Property Office,09/08/2016,Office Stationery,People Places & Serv Direct,Nukey,H57720160811knfwnyigu,0.10,Not Applicable,
Department for Business Energy and Industrial Strategy,Intellectual Property Office,09/08/2016,Office Stationery,People Places & Serv Direct,Sainsburys S/mkts,H57720160811coghwohwl,7.75,Not Applicable,
Department for Business Energy and Industrial Strategy,Intellectual Property Office,05/08/2016,Minor Works-Goods,People Places & Serv Direct,Screwfix Direct,H57720160809nxnowxixs,49.99,Not Applicable,
Department for Business Energy and Industrial Strategy,Intellectual Property Office,05/08/2016,Minor Works-Goods,People Places & Serv Direct,The Colour Centre,H57720160809vwmfsviur,377.28,Not Applicable,
Department for Business Energy and Industrial Strategy,Intellectual Property Office,05/08/2016,Minor Works-Goods,People Places & Serv Direct,Screwfix Direct,H57720160809dhlsxkdue,76.88,Not Applicable,
Department for Business Energy and Industrial Strategy,Intellectual Property Office,05/08/2016,Office Stationery,People Places & Serv Direct,The Range,H57720160809fkqskhoyp,24.98,Not Applicable,
Department for Business Energy and Industrial Strategy,Intellectual Property Office,05/08/2016,Minor Works-Goods,People Places & Serv Direct,Roberts Price (Bm) Ltd,H57720160809gmjeoljqy,94.87,Not Applicable,
Department for Business Energy and Industrial Strategy,Intellectual Property Office,03/08/2016,Other,People Places & Serv Direct,Amazon UK Retail,H57720160805wcdifvqwk,68.94,Not Applicable,
Department for Business Energy and Industrial Strategy,Intellectual Property Office,02/08/2016,Minor Works-Goods,People Places & Serv Direct,Screwfix Direct,H57720160804xheqvmuto,-29.99,Not Applicable,
Department for Business Energy and Industrial Strategy,Intellectual Property Office,02/08/2016,Minor Works-Goods,People Places & Serv Direct,The Colour Centre,H57720160804vklxkptcn,361.91,Not Applicable,
Department for Business Energy and Industrial Strategy,Intellectual Property Office,01/08/2016,Minor Works-Goods,People Places & Serv Direct,Roberts Price (Bm) Ltd,H57720160803pdvuxsyvc,31.81,Not Applicable,
Department for Business Energy and Industrial Strategy,Intellectual Property Office,01/08/2016,Minor Works-Goods,People Places & Serv Direct,Screwfix Direct,H57720160803knxhgxjln,40.75,Not Applicable,
Department for Business Energy and Industrial Strategy,Intellectual Property Office,26/08/2016,Office Stationery,People Places & Serv Direct,Currys S/s,H57720160830nrwvlpvnf,159.99,Not Applicable,
Department for Business Energy and Industrial Strategy,Intellectual Property Office,26/08/2016,Other,People Places & Serv Direct,Www Orielcollections Co U,H57720160830oehpmhrzz,78.31,Not Applicable,
Department for Business Energy and Industrial Strategy,Intellectual Property Office,11/08/2016,Office Stationery,People Places & Serv Direct,Ring O Roses,H57720160813rbsubnxxb,80.00,Not Applicable,
Department for Business Energy and Industrial Strategy,Intellectual Property Office,09/08/2016,Office Stationery,People Places & Serv Direct,Currys S/s,H57720160811ybbzibjev,199.98,Not Applicable,
Department for Business Energy and Industrial Strategy,Intellectual Property Office,03/08/2016,Office Stationery,People Places & Serv Direct,Kwintet UK Limited,H57720160806dgckejmnu,397.03,Not Applicable,
Department for Business Energy and Industrial Strategy,Intellectual Property Office,03/08/2016,Office Stationery,People Places & Serv Direct,Howden Joinery Newport,H57720160805mytujlcmt,490.80,Not Applicable,
Department for Business Energy and Industrial Strategy,Intellectual Property Office,28/07/2016,Office Stationery,People Places & Serv Direct,Griffiths Signs & Eqip,H57720160803hksyrrtik,58.20,Not Applicable,
Department for Business Energy and Industrial Strategy,Intellectual Property Office,18/08/2016,Office Stationery,People Places & Serv Direct,Www.Safeoptions.Co.Uk,H57720160820ylumubumm,452.40,Not Applicable,
Department for Business Energy and Industrial Strategy,Intellectual Property Office,18/08/2016,Office Stationery,People Places & Serv Direct,Amazon UK Marketplace,H57720160820cbcuwftbl,21.49,Not Applicable,
Department for Business Energy and Industrial Strategy,Intellectual Property Office,15/08/2016,Office Stationery,People Places & Serv Direct,Amazon UK Marketplace,H57720160817npctmfmwd,21.49,Not Applicable,
Department for Business Energy and Industrial Strategy,Intellectual Property Office,15/08/2016,Career Development Services,People Places & Serv Direct,Asda Superstore 4928,H57720160817sgmmgullw,15.00,Not Applicable,
Department for Business Energy and Industrial Strategy,Intellectual Property Office,11/08/2016,Career Development Services,People Places & Serv Direct,Amazon UK Marketplace,H57720160813xummujuvb,36.00,Not Applicable,
Department for Business Energy and Industrial Strategy,Intellectual Property Office,10/08/2016,Career Development Services,People Places & Serv Direct,Amazon UK Retail,H57720160812jlmweckzr,27.38,Not Applicable,
Department for Business Energy and Industrial Strategy,Intellectual Property Office,18/08/2016,Minor Works-Goods,People Places & Serv Direct,Screwfix Direct,H57720160820cvuvphich,29.93,Not Applicable,
Department for Business Energy and Industrial Strategy,Intellectual Property Office,09/08/2016,Minor Works-Goods,People Places & Serv Direct,Screwfix Direct,H57720160811lvofwnlnu,37.73,Not Applicable,
Department for Business Energy and Industrial Strategy,Intellectual Property Office,03/08/2016,Minor Works-Goods,People Places & Serv Direct,Newey & Eyre,H57720160806qikbmfkpj,59.40,Not Applicable,
Department for Business Energy and Industrial Strategy,Intellectual Property Office,02/08/2016,Minor Works-Goods,People Places & Serv Direct,Sp Key Clamps Online,H57720160804acyveyooj,470.08,Not Applicable,
Department for Business Energy and Industrial Strategy,Intellectual Property Office,02/08/2016,Minor Works-Goods,People Places & Serv Direct,Screwfix Direct,H57720160804bppgnerqx,175.79,Not Applicable,
Department for Business Energy and Industrial Strategy,Intellectual Property Office,29/07/2016,Career Development Services,International Policy Directorate,Informa UK Moto Gb,H57720160802lrgiguyts,899.00,Not Applicable,
Department for Business Energy and Industrial Strategy,Intellectual Property Office,03/08/2016,Legal Consultancy,Patent Directorate,Civil Service Learning,H57720160805nylqcuxze,1203.60,Not Applicable,
Department for Business Energy and Industrial Strategy,Intellectual Property Office,29/07/2016,Network and infrastructure H/W,Patent Directorate,Www.Misco.Co.Uk,H57720160802bblouyqmx,167.93,Not Applicable,
Department for Business Energy and Industrial Strategy,Intellectual Property Office,24/08/2016,Perpetual Licences,Projects,Cloudflare,H57720160828szvlkxgfd,171.93,Not Applicable,
Department for Business Energy and Industrial Strategy,Intellectual Property Office,28/07/2016,T&S UK,Projects,Fullersh006sanctuaryhs,H57720160802mvctocygn,150.00,Not Applicable,
